{"text_format":"1","workbook":"xlsx","n_sheets":5,"sheets":["始めに","申し込み一覧","エントリー","生年月日","部門"],"not_rendered":{"charts":0,"images":3,"macros":1,"external_links":0,"defined_names":12,"comments":0,"pivot_tables":0},"unopened":[],"bounds":{"document_bytes":16777216,"sheet_cells":100000,"rows_first":2000,"rows_last":500,"rows_between":2000,"halvings":0,"cell_chars":16384,"cell_head_chars":4096},"cells_cut":0,"cells_raw":0,"read":"whole","date_system":"1900"}

{"sheet":"始めに","index":0,"n_rows":42,"n_cols":7,"rows_kept":42,"cut":false,"hidden":false,"merged":[]}
[]
[]
[null,"始めに・・・"]
[]
[null,"ダウンロードした入力用のExcelファイルは、事務局提出時には"]
[null,"ファイル名を、団体名に変更してから提出して下さい"]
[]
[]
[]
[]
[]
[]
[]
[]
[]
[]
[]
[]
[]
[]
[]
[]
[null,"起動時に セキュリティの警告（マクロの警告） が表示された場合、"]
[null,"クリックし必ず 有効 にしてから入力を開始して下さい"]
[null,"Excelのバージョンにより表示方法が異なる場合があります"]
[]
[]
[null,"『申込み一覧』の参加人数は"]
[null,"参加者リストを入力すると自動で反映されますので、"]
[null,"『申込み一覧』は最後にご入力下さい。"]
[]
[null,"全てのエクセルシートに保護をかけてあります。"]
[null,"保護部分を解除してのご入力は、絶対にしないで下さい。"]
[]
[]
[null,"＜締め切り＞"]
[]
[null,null,"令和３年５月２１日（金）",null,null,null,"15時"]
[]
[null,"＜データ送信先＞"]
[]
[null,null,"東海支部事務所　tokai_2005_sb@yahoo.co.jp"]

{"sheet":"申し込み一覧","index":1,"n_rows":38,"n_cols":26,"rows_kept":38,"cut":false,"hidden":false,"merged":[[31,6,31,7],[29,0,29,3],[33,0,33,3],[30,0,30,3],[28,6,28,7],[29,6,29,7],[31,0,31,3],[34,0,34,3],[27,0,27,3],[20,0,20,3],[21,0,21,3],[0,0,0,27],[1,0,1,27],[15,22,15,28],[28,0,28,3],[15,19,15,21],[4,18,4,20],[11,19,11,21],[19,6,19,7],[4,21,4,23],[13,19,13,21],[19,0,19,3],[11,1,11,2],[17,13,17,17],[19,13,19,17],[20,13,20,17],[12,3,12,16],[15,11,15,15],[20,6,20,7],[15,1,15,2],[15,3,15,7],[15,9,15,10],[6,1,6,2],[6,3,6,16],[11,3,11,5],[12,1,12,2],[2,0,2,2],[2,3,2,7],[7,1,7,2],[7,3,7,16],[9,0,9,2],[9,3,9,8],[4,0,4,2],[4,3,4,7],[23,13,23,17],[30,6,30,7],[27,13,27,17],[26,13,26,17],[26,6,26,7],[27,6,27,7],[23,6,23,7],[22,0,22,3],[21,6,21,7],[22,6,22,7],[21,13,21,17],[22,13,22,17],[26,0,26,3],[37,13,37,17],[35,13,35,17],[33,13,33,17],[34,13,34,17],[31,13,31,17],[33,6,33,7],[37,2,37,9],[32,13,32,17],[34,6,34,7],[35,6,35,7],[28,13,28,17],[29,13,29,17],[30,13,30,17],[32,6,32,7],[35,0,35,3]]}
["第４6回バトントワーリング東海支部大会"]
["＜申し込み一覧表＞"]
["登録支部",null,null,"東海支部"]
[]
["団体登録ＩＤ",null,null,null,null,null,null,null,null,null,null,null,null,null,null,true,false]
[]
[null,"団体名"]
[null,"フリガナ"]
[]
["申込責任者名"]
[]
[null,"〒",null,null,null,null,null,null,null,null,null,null,null,null,null,null,null,null,null,"データ送信日",null,null,null,"月",null,"日"]
[null,"住　所"]
[null,null,null,{"$f":"LEFT(D13,MIN(FIND({0,1,2,3,4,5,6,7,8,9},ASC(D13)&1234567890))-1)","v":""},null,null,null,null,null,null,null,null,null,null,null,null,null,null,null,"諸費用送金日",null,null,null,"月",null,"日"]
[null,null,null,{"$f":"SUBSTITUTE(D13,D14,\"\")","v":""}]
[null,"TEL",null,null,null,null,null,null,"／","FAX",null,null,null,null,null,null,null,null,null,"送金元口座名義"]
[]
["＜エントリー料＞",null,null,null,null,null,null,null,null,null,null,null,"諸費用合計",{"$f":"N38","v":0},null,null,null,null,"円"]
[]
[]
[]
[]
[]
[]
[]
[]
["ソロトワール",null,null,null,null,null,5000,null,"円","×",{"$f":"COUNTA(エントリー!I3:I102)","v":0},"人","　＝",{"$f":"$G27*$K27","v":0},null,null,null,null,"円"]
["トゥーバトン",null,null,null,null,null,5000,null,"円","×",{"$f":"COUNTA(エントリー!L3:L102)","v":0},"人","　＝",{"$f":"$G28*$K28","v":0},null,null,null,null,"円"]
["スリーバトン",null,null,null,null,null,5000,null,"円","×",{"$f":"COUNTA(エントリー!O3:O102)","v":0},"人","　＝",0,null,null,null,null,"円"]
["ソロストラット",null,null,null,null,null,5000,null,"円","×",{"$f":"COUNTA(エントリー!R3:R102)","v":0},"人","　＝",0,null,null,null,null,"円"]
["ダンストワール",null,null,null,null,null,5000,null,"円","×",{"$f":"COUNTA(エントリー!U3:U102)","v":0},"人","　＝",0,null,null,null,null,"円"]
["ペ　ア",null,null,null,null,null,8000,null,"円","×",{"$f":"COUNTA(エントリー!X3:X102)/2","v":0},"組","　＝",0,null,null,null,null,"円"]
["ショートプログラム",null,null,null,null,null,3000,null,"円","×",{"$f":"COUNTA(エントリー!AA3:AA102)","v":0},"人","　＝",0,null,null,null,null,"円"]
["フリースタイル個人",null,null,null,null,null,10000,null,"円","×",{"$f":"COUNTA(エントリー!AD3:AD102)","v":0},"人","　＝",0,null,null,null,null,"円"]
["フリースタイルペア",null,null,null,null,null,10000,null,"円","×",{"$f":"COUNTA(エントリー!AG3:AG102)/2","v":0},"組","　＝",{"$f":"$G35*$K35","v":0},null,null,null,null,"円"]
["フリースタイルチーム",null,null,null,null,null,20000,null,"円","×",{"$f":"COUNTIF(エントリー!AJ3:AJ102,1)","v":0},"ﾁｰﾑ","　＝",0,null,null,null,null,"円",{"$f":"COUNTA(エントリー!AJ3:AJ102)","v":0}]
[]
[null,null,"（のべ人数）",null,null,null,null,null,null,null,{"$f":"$K$27+$K$28+$K$29+$K$30+$K$31+($K$32*2)+K33+K34+(K35*2)+T36","v":0},"人","合計",{"$f":"SUM(N27:R36)","v":0},null,null,null,null,"円"]

{"sheet":"エントリー","index":2,"n_rows":102,"n_cols":106,"rows_kept":102,"cut":false,"hidden":false,"merged":[[0,25,0,27],[0,7,0,9],[0,10,0,12],[0,13,0,15],[0,16,0,18],[0,19,0,21],[0,22,0,24],[0,42,0,43],[0,36,0,38],[0,34,0,35],[0,39,0,41],[0,28,0,30],[0,31,0,33]]}
[null,null,null,null,null,null,null,"ソロトワール",null,null,"2バトン",null,null,"3バトン",null,null,"ソロストラット",null,null,"ダンストワール",null,null,"ペア",null,null,"ショートプログラム",null,null,"フリースタイル個人",null,null,"フリースタイルペア",null,null,"Fチーム",null,"アーティステｨックトワール",null,null,"アーティステｨックペア",null,null,"Aグループ"]
["会員番号","名前","フリガナ","ローマ字","性別","生年月日","年齢","通しNo","部門コード","部門名","通しNo","部門コード","部門名","通しNo","部門コード","部門名","通しNo","部門コード","部門名","通しNo","部門コード","部門名","通しNo","部門コード","部門名","通しNo","部門コード","部門名","通しNo","部門コード","部門名","通しNo","部門コード","部門名","チーム区分","チーム別通しNo","通しNo","部門コード","部門名","通しNo","部門コード","部門名","グループ区分","グループ別通しNo"]
[null,null,null,null,null,null,null,null,null,null,null,null,null,null,null,null,null,null,null,null,null,null,null,null,null,null,null,null,null,null,null,null,null,null,null,null,null,null,null,null,null,null,null,null,null,null,null,null,null,null,null,null,null,null,null,null,null,null,null,null,null,null,null,null,null,null,null,null,null,null,null,null,null,null,null,null,null,null,null,null,null,null,null,null,null,null,null,null,null,null,null,null,null,null,null,null,null,null,null,null,null,null,null,null,{"$f":"COUNTA(I3,L3,O3,R3,U3,X3)","v":0},{"$f":"COUNTA(AA3,AD3,AG3,AJ3)","v":0}]
[null,null,null,null,null,null,null,null,null,null,null,null,null,null,null,null,null,null,null,null,null,null,null,null,null,null,null,null,null,null,null,null,null,null,null,null,null,null,null,null,null,null,null,null,null,null,null,null,null,null,null,null,null,null,null,null,null,null,null,null,null,null,null,null,null,null,null,null,null,null,null,null,null,null,null,null,null,null,null,null,null,null,null,null,null,null,null,null,null,null,null,null,null,null,null,null,null,null,null,null,null,null,null,null,{"$f":"COUNTA(I4,L4,O4,R4,U4,X4)","v":0},{"$f":"COUNTA(AA4,AD4,AG4,AJ4)","v":0}]
[null,null,null,null,null,null,null,null,null,null,null,null,null,null,null,null,null,null,null,null,null,null,null,null,null,null,null,null,null,null,null,null,null,null,null,null,null,null,null,null,null,null,null,null,null,null,null,null,null,null,null,null,null,null,null,null,null,null,null,null,null,null,null,null,null,null,null,null,null,null,null,null,null,null,null,null,null,null,null,null,null,null,null,null,null,null,null,null,null,null,null,null,null,null,null,null,null,null,null,null,null,null,null,null,0,0]
[null,null,null,null,null,null,null,null,null,null,null,null,null,null,null,null,null,null,null,null,null,null,null,null,null,null,null,null,null,null,null,null,null,null,null,null,null,null,null,null,null,null,null,null,null,null,null,null,null,null,null,null,null,null,null,null,null,null,null,null,null,null,null,null,null,null,null,null,null,null,null,null,null,null,null,null,null,null,null,null,null,null,null,null,null,null,null,null,null,null,null,null,null,null,null,null,null,null,null,null,null,null,null,null,0,0]
[null,null,null,null,null,null,null,null,null,null,null,null,null,null,null,null,null,null,null,null,null,null,null,null,null,null,null,null,null,null,null,null,null,null,null,null,null,null,null,null,null,null,null,null,null,null,null,null,null,null,null,null,null,null,null,null,null,null,null,null,null,null,null,null,null,null,null,null,null,null,null,null,null,null,null,null,null,null,null,null,null,null,null,null,null,null,null,null,null,null,null,null,null,null,null,null,null,null,null,null,null,null,null,null,0,0]
[null,null,null,null,null,null,null,null,null,null,null,null,null,null,null,null,null,null,null,null,null,null,null,null,null,null,null,null,null,null,null,null,null,null,null,null,null,null,null,null,null,null,null,null,null,null,null,null,null,null,null,null,null,null,null,null,null,null,null,null,null,null,null,null,null,null,null,null,null,null,null,null,null,null,null,null,null,null,null,null,null,null,null,null,null,null,null,null,null,null,null,null,null,null,null,null,null,null,null,null,null,null,null,null,0,0]
[null,null,null,null,null,null,null,null,null,null,null,null,null,null,null,null,null,null,null,null,null,null,null,null,null,null,null,null,null,null,null,null,null,null,null,null,null,null,null,null,null,null,null,null,null,null,null,null,null,null,null,null,null,null,null,null,null,null,null,null,null,null,null,null,null,null,null,null,null,null,null,null,null,null,null,null,null,null,null,null,null,null,null,null,null,null,null,null,null,null,null,null,null,null,null,null,null,null,null,null,null,null,null,null,0,0]
[null,null,null,null,null,null,null,null,null,null,null,null,null,null,null,null,null,null,null,null,null,null,null,null,null,null,null,null,null,null,null,null,null,null,null,null,null,null,null,null,null,null,null,null,null,null,null,null,null,null,null,null,null,null,null,null,null,null,null,null,null,null,null,null,null,null,null,null,null,null,null,null,null,null,null,null,null,null,null,null,null,null,null,null,null,null,null,null,null,null,null,null,null,null,null,null,null,null,null,null,null,null,null,null,0,0]
[null,null,null,null,null,null,null,null,null,null,null,null,null,null,null,null,null,null,null,null,null,null,null,null,null,null,null,null,null,null,null,null,null,null,null,null,null,null,null,null,null,null,null,null,null,null,null,null,null,null,null,null,null,null,null,null,null,null,null,null,null,null,null,null,null,null,null,null,null,null,null,null,null,null,null,null,null,null,null,null,null,null,null,null,null,null,null,null,null,null,null,null,null,null,null,null,null,null,null,null,null,null,null,null,0,0]
[null,null,null,null,null,null,null,null,null,null,null,null,null,null,null,null,null,null,null,null,null,null,null,null,null,null,null,null,null,null,null,null,null,null,null,null,null,null,null,null,null,null,null,null,null,null,null,null,null,null,null,null,null,null,null,null,null,null,null,null,null,null,null,null,null,null,null,null,null,null,null,null,null,null,null,null,null,null,null,null,null,null,null,null,null,null,null,null,null,null,null,null,null,null,null,null,null,null,null,null,null,null,null,null,0,0]
[null,null,null,null,null,null,null,null,null,null,null,null,null,null,null,null,null,null,null,null,null,null,null,null,null,null,null,null,null,null,null,null,null,null,null,null,null,null,null,null,null,null,null,null,null,null,null,null,null,null,null,null,null,null,null,null,null,null,null,null,null,null,null,null,null,null,null,null,null,null,null,null,null,null,null,null,null,null,null,null,null,null,null,null,null,null,null,null,null,null,null,null,null,null,null,null,null,null,null,null,null,null,null,null,0,0]
[null,null,null,null,null,null,null,null,null,null,null,null,null,null,null,null,null,null,null,null,null,null,null,null,null,null,null,null,null,null,null,null,null,null,null,null,null,null,null,null,null,null,null,null,null,null,null,null,null,null,null,null,null,null,null,null,null,null,null,null,null,null,null,null,null,null,null,null,null,null,null,null,null,null,null,null,null,null,null,null,null,null,null,null,null,null,null,null,null,null,null,null,null,null,null,null,null,null,null,null,null,null,null,null,0,0]
[null,null,null,null,null,null,null,null,null,null,null,null,null,null,null,null,null,null,null,null,null,null,null,null,null,null,null,null,null,null,null,null,null,null,null,null,null,null,null,null,null,null,null,null,null,null,null,null,null,null,null,null,null,null,null,null,null,null,null,null,null,null,null,null,null,null,null,null,null,null,null,null,null,null,null,null,null,null,null,null,null,null,null,null,null,null,null,null,null,null,null,null,null,null,null,null,null,null,null,null,null,null,null,null,0,0]
[null,null,null,null,null,null,null,null,null,null,null,null,null,null,null,null,null,null,null,null,null,null,null,null,null,null,null,null,null,null,null,null,null,null,null,null,null,null,null,null,null,null,null,null,null,null,null,null,null,null,null,null,null,null,null,null,null,null,null,null,null,null,null,null,null,null,null,null,null,null,null,null,null,null,null,null,null,null,null,null,null,null,null,null,null,null,null,null,null,null,null,null,null,null,null,null,null,null,null,null,null,null,null,null,0,0]
[null,null,null,null,null,null,null,null,null,null,null,null,null,null,null,null,null,null,null,null,null,null,null,null,null,null,null,null,null,null,null,null,null,null,null,null,null,null,null,null,null,null,null,null,null,null,null,null,null,null,null,null,null,null,null,null,null,null,null,null,null,null,null,null,null,null,null,null,null,null,null,null,null,null,null,null,null,null,null,null,null,null,null,null,null,null,null,null,null,null,null,null,null,null,null,null,null,null,null,null,null,null,null,null,0,0]
[null,null,null,null,null,null,null,null,null,null,null,null,null,null,null,null,null,null,null,null,null,null,null,null,null,null,null,null,null,null,null,null,null,null,null,null,null,null,null,null,null,null,null,null,null,null,null,null,null,null,null,null,null,null,null,null,null,null,null,null,null,null,null,null,null,null,null,null,null,null,null,null,null,null,null,null,null,null,null,null,null,null,null,null,null,null,null,null,null,null,null,null,null,null,null,null,null,null,null,null,null,null,null,null,0,0]
[null,null,null,null,null,null,null,null,null,null,null,null,null,null,null,null,null,null,null,null,null,null,null,null,null,null,null,null,null,null,null,null,null,null,null,null,null,null,null,null,null,null,null,null,null,null,null,null,null,null,null,null,null,null,null,null,null,null,null,null,null,null,null,null,null,null,null,null,null,null,null,null,null,null,null,null,null,null,null,null,null,null,null,null,null,null,null,null,null,null,null,null,null,null,null,null,null,null,null,null,null,null,null,null,0,0]
[null,null,null,null,null,null,null,null,null,null,null,null,null,null,null,null,null,null,null,null,null,null,null,null,null,null,null,null,null,null,null,null,null,null,null,null,null,null,null,null,null,null,null,null,null,null,null,null,null,null,null,null,null,null,null,null,null,null,null,null,null,null,null,null,null,null,null,null,null,null,null,null,null,null,null,null,null,null,null,null,null,null,null,null,null,null,null,null,null,null,null,null,null,null,null,null,null,null,null,null,null,null,null,null,0,0]
[null,null,null,null,null,null,null,null,null,null,null,null,null,null,null,null,null,null,null,null,null,null,null,null,null,null,null,null,null,null,null,null,null,null,null,null,null,null,null,null,null,null,null,null,null,null,null,null,null,null,null,null,null,null,null,null,null,null,null,null,null,null,null,null,null,null,null,null,null,null,null,null,null,null,null,null,null,null,null,null,null,null,null,null,null,null,null,null,null,null,null,null,null,null,null,null,null,null,null,null,null,null,null,null,0,0]
[null,null,null,null,null,null,null,null,null,null,null,null,null,null,null,null,null,null,null,null,null,null,null,null,null,null,null,null,null,null,null,null,null,null,null,null,null,null,null,null,null,null,null,null,null,null,null,null,null,null,null,null,null,null,null,null,null,null,null,null,null,null,null,null,null,null,null,null,null,null,null,null,null,null,null,null,null,null,null,null,null,null,null,null,null,null,null,null,null,null,null,null,null,null,null,null,null,null,null,null,null,null,null,null,0,0]
[null,null,null,null,null,null,null,null,null,null,null,null,null,null,null,null,null,null,null,null,null,null,null,null,null,null,null,null,null,null,null,null,null,null,null,null,null,null,null,null,null,null,null,null,null,null,null,null,null,null,null,null,null,null,null,null,null,null,null,null,null,null,null,null,null,null,null,null,null,null,null,null,null,null,null,null,null,null,null,null,null,null,null,null,null,null,null,null,null,null,null,null,null,null,null,null,null,null,null,null,null,null,null,null,0,0]
[null,null,null,null,null,null,null,null,null,null,null,null,null,null,null,null,null,null,null,null,null,null,null,null,null,null,null,null,null,null,null,null,null,null,null,null,null,null,null,null,null,null,null,null,null,null,null,null,null,null,null,null,null,null,null,null,null,null,null,null,null,null,null,null,null,null,null,null,null,null,null,null,null,null,null,null,null,null,null,null,null,null,null,null,null,null,null,null,null,null,null,null,null,null,null,null,null,null,null,null,null,null,null,null,0,0]
[null,null,null,null,null,null,null,null,null,null,null,null,null,null,null,null,null,null,null,null,null,null,null,null,null,null,null,null,null,null,null,null,null,null,null,null,null,null,null,null,null,null,null,null,null,null,null,null,null,null,null,null,null,null,null,null,null,null,null,null,null,null,null,null,null,null,null,null,null,null,null,null,null,null,null,null,null,null,null,null,null,null,null,null,null,null,null,null,null,null,null,null,null,null,null,null,null,null,null,null,null,null,null,null,0,0]
[null,null,null,null,null,null,null,null,null,null,null,null,null,null,null,null,null,null,null,null,null,null,null,null,null,null,null,null,null,null,null,null,null,null,null,null,null,null,null,null,null,null,null,null,null,null,null,null,null,null,null,null,null,null,null,null,null,null,null,null,null,null,null,null,null,null,null,null,null,null,null,null,null,null,null,null,null,null,null,null,null,null,null,null,null,null,null,null,null,null,null,null,null,null,null,null,null,null,null,null,null,null,null,null,0,0]
[null,null,null,null,null,null,null,null,null,null,null,null,null,null,null,null,null,null,null,null,null,null,null,null,null,null,null,null,null,null,null,null,null,null,null,null,null,null,null,null,null,null,null,null,null,null,null,null,null,null,null,null,null,null,null,null,null,null,null,null,null,null,null,null,null,null,null,null,null,null,null,null,null,null,null,null,null,null,null,null,null,null,null,null,null,null,null,null,null,null,null,null,null,null,null,null,null,null,null,null,null,null,null,null,0,0]
[null,null,null,null,null,null,null,null,null,null,null,null,null,null,null,null,null,null,null,null,null,null,null,null,null,null,null,null,null,null,null,null,null,null,null,null,null,null,null,null,null,null,null,null,null,null,null,null,null,null,null,null,null,null,null,null,null,null,null,null,null,null,null,null,null,null,null,null,null,null,null,null,null,null,null,null,null,null,null,null,null,null,null,null,null,null,null,null,null,null,null,null,null,null,null,null,null,null,null,null,null,null,null,null,0,0]
[null,null,null,null,null,null,null,null,null,null,null,null,null,null,null,null,null,null,null,null,null,null,null,null,null,null,null,null,null,null,null,null,null,null,null,null,null,null,null,null,null,null,null,null,null,null,null,null,null,null,null,null,null,null,null,null,null,null,null,null,null,null,null,null,null,null,null,null,null,null,null,null,null,null,null,null,null,null,null,null,null,null,null,null,null,null,null,null,null,null,null,null,null,null,null,null,null,null,null,null,null,null,null,null,0,0]
[null,null,null,null,null,null,null,null,null,null,null,null,null,null,null,null,null,null,null,null,null,null,null,null,null,null,null,null,null,null,null,null,null,null,null,null,null,null,null,null,null,null,null,null,null,null,null,null,null,null,null,null,null,null,null,null,null,null,null,null,null,null,null,null,null,null,null,null,null,null,null,null,null,null,null,null,null,null,null,null,null,null,null,null,null,null,null,null,null,null,null,null,null,null,null,null,null,null,null,null,null,null,null,null,0,0]
[null,null,null,null,null,null,null,null,null,null,null,null,null,null,null,null,null,null,null,null,null,null,null,null,null,null,null,null,null,null,null,null,null,null,null,null,null,null,null,null,null,null,null,null,null,null,null,null,null,null,null,null,null,null,null,null,null,null,null,null,null,null,null,null,null,null,null,null,null,null,null,null,null,null,null,null,null,null,null,null,null,null,null,null,null,null,null,null,null,null,null,null,null,null,null,null,null,null,null,null,null,null,null,null,0,0]
[null,null,null,null,null,null,null,null,null,null,null,null,null,null,null,null,null,null,null,null,null,null,null,null,null,null,null,null,null,null,null,null,null,null,null,null,null,null,null,null,null,null,null,null,null,null,null,null,null,null,null,null,null,null,null,null,null,null,null,null,null,null,null,null,null,null,null,null,null,null,null,null,null,null,null,null,null,null,null,null,null,null,null,null,null,null,null,null,null,null,null,null,null,null,null,null,null,null,null,null,null,null,null,null,0,0]
[null,null,null,null,null,null,null,null,null,null,null,null,null,null,null,null,null,null,null,null,null,null,null,null,null,null,null,null,null,null,null,null,null,null,null,null,null,null,null,null,null,null,null,null,null,null,null,null,null,null,null,null,null,null,null,null,null,null,null,null,null,null,null,null,null,null,null,null,null,null,null,null,null,null,null,null,null,null,null,null,null,null,null,null,null,null,null,null,null,null,null,null,null,null,null,null,null,null,null,null,null,null,null,null,0,0]
[null,null,null,null,null,null,null,null,null,null,null,null,null,null,null,null,null,null,null,null,null,null,null,null,null,null,null,null,null,null,null,null,null,null,null,null,null,null,null,null,null,null,null,null,null,null,null,null,null,null,null,null,null,null,null,null,null,null,null,null,null,null,null,null,null,null,null,null,null,null,null,null,null,null,null,null,null,null,null,null,null,null,null,null,null,null,null,null,null,null,null,null,null,null,null,null,null,null,null,null,null,null,null,null,0,0]
[null,null,null,null,null,null,null,null,null,null,null,null,null,null,null,null,null,null,null,null,null,null,null,null,null,null,null,null,null,null,null,null,null,null,null,null,null,null,null,null,null,null,null,null,null,null,null,null,null,null,null,null,null,null,null,null,null,null,null,null,null,null,null,null,null,null,null,null,null,null,null,null,null,null,null,null,null,null,null,null,null,null,null,null,null,null,null,null,null,null,null,null,null,null,null,null,null,null,null,null,null,null,null,null,0,0]
[null,null,null,null,null,null,null,null,null,null,null,null,null,null,null,null,null,null,null,null,null,null,null,null,null,null,null,null,null,null,null,null,null,null,null,null,null,null,null,null,null,null,null,null,null,null,null,null,null,null,null,null,null,null,null,null,null,null,null,null,null,null,null,null,null,null,null,null,null,null,null,null,null,null,null,null,null,null,null,null,null,null,null,null,null,null,null,null,null,null,null,null,null,null,null,null,null,null,null,null,null,null,null,null,0,0]
[null,null,null,null,null,null,null,null,null,null,null,null,null,null,null,null,null,null,null,null,null,null,null,null,null,null,null,null,null,null,null,null,null,null,null,null,null,null,null,null,null,null,null,null,null,null,null,null,null,null,null,null,null,null,null,null,null,null,null,null,null,null,null,null,null,null,null,null,null,null,null,null,null,null,null,null,null,null,null,null,null,null,null,null,null,null,null,null,null,null,null,null,null,null,null,null,null,null,null,null,null,null,null,null,0,0]
[null,null,null,null,null,null,null,null,null,null,null,null,null,null,null,null,null,null,null,null,null,null,null,null,null,null,null,null,null,null,null,null,null,null,null,null,null,null,null,null,null,null,null,null,null,null,null,null,null,null,null,null,null,null,null,null,null,null,null,null,null,null,null,null,null,null,null,null,null,null,null,null,null,null,null,null,null,null,null,null,null,null,null,null,null,null,null,null,null,null,null,null,null,null,null,null,null,null,null,null,null,null,null,null,0,0]
[null,null,null,null,null,null,null,null,null,null,null,null,null,null,null,null,null,null,null,null,null,null,null,null,null,null,null,null,null,null,null,null,null,null,null,null,null,null,null,null,null,null,null,null,null,null,null,null,null,null,null,null,null,null,null,null,null,null,null,null,null,null,null,null,null,null,null,null,null,null,null,null,null,null,null,null,null,null,null,null,null,null,null,null,null,null,null,null,null,null,null,null,null,null,null,null,null,null,null,null,null,null,null,null,0,0]
[null,null,null,null,null,null,null,null,null,null,null,null,null,null,null,null,null,null,null,null,null,null,null,null,null,null,null,null,null,null,null,null,null,null,null,null,null,null,null,null,null,null,null,null,null,null,null,null,null,null,null,null,null,null,null,null,null,null,null,null,null,null,null,null,null,null,null,null,null,null,null,null,null,null,null,null,null,null,null,null,null,null,null,null,null,null,null,null,null,null,null,null,null,null,null,null,null,null,null,null,null,null,null,null,0,0]
[null,null,null,null,null,null,null,null,null,null,null,null,null,null,null,null,null,null,null,null,null,null,null,null,null,null,null,null,null,null,null,null,null,null,null,null,null,null,null,null,null,null,null,null,null,null,null,null,null,null,null,null,null,null,null,null,null,null,null,null,null,null,null,null,null,null,null,null,null,null,null,null,null,null,null,null,null,null,null,null,null,null,null,null,null,null,null,null,null,null,null,null,null,null,null,null,null,null,null,null,null,null,null,null,0,0]
[null,null,null,null,null,null,null,null,null,null,null,null,null,null,null,null,null,null,null,null,null,null,null,null,null,null,null,null,null,null,null,null,null,null,null,null,null,null,null,null,null,null,null,null,null,null,null,null,null,null,null,null,null,null,null,null,null,null,null,null,null,null,null,null,null,null,null,null,null,null,null,null,null,null,null,null,null,null,null,null,null,null,null,null,null,null,null,null,null,null,null,null,null,null,null,null,null,null,null,null,null,null,null,null,0,0]
[null,null,null,null,null,null,null,null,null,null,null,null,null,null,null,null,null,null,null,null,null,null,null,null,null,null,null,null,null,null,null,null,null,null,null,null,null,null,null,null,null,null,null,null,null,null,null,null,null,null,null,null,null,null,null,null,null,null,null,null,null,null,null,null,null,null,null,null,null,null,null,null,null,null,null,null,null,null,null,null,null,null,null,null,null,null,null,null,null,null,null,null,null,null,null,null,null,null,null,null,null,null,null,null,0,0]
[null,null,null,null,null,null,null,null,null,null,null,null,null,null,null,null,null,null,null,null,null,null,null,null,null,null,null,null,null,null,null,null,null,null,null,null,null,null,null,null,null,null,null,null,null,null,null,null,null,null,null,null,null,null,null,null,null,null,null,null,null,null,null,null,null,null,null,null,null,null,null,null,null,null,null,null,null,null,null,null,null,null,null,null,null,null,null,null,null,null,null,null,null,null,null,null,null,null,null,null,null,null,null,null,0,0]
[null,null,null,null,null,null,null,null,null,null,null,null,null,null,null,null,null,null,null,null,null,null,null,null,null,null,null,null,null,null,null,null,null,null,null,null,null,null,null,null,null,null,null,null,null,null,null,null,null,null,null,null,null,null,null,null,null,null,null,null,null,null,null,null,null,null,null,null,null,null,null,null,null,null,null,null,null,null,null,null,null,null,null,null,null,null,null,null,null,null,null,null,null,null,null,null,null,null,null,null,null,null,null,null,0,0]
[null,null,null,null,null,null,null,null,null,null,null,null,null,null,null,null,null,null,null,null,null,null,null,null,null,null,null,null,null,null,null,null,null,null,null,null,null,null,null,null,null,null,null,null,null,null,null,null,null,null,null,null,null,null,null,null,null,null,null,null,null,null,null,null,null,null,null,null,null,null,null,null,null,null,null,null,null,null,null,null,null,null,null,null,null,null,null,null,null,null,null,null,null,null,null,null,null,null,null,null,null,null,null,null,0,0]
[null,null,null,null,null,null,null,null,null,null,null,null,null,null,null,null,null,null,null,null,null,null,null,null,null,null,null,null,null,null,null,null,null,null,null,null,null,null,null,null,null,null,null,null,null,null,null,null,null,null,null,null,null,null,null,null,null,null,null,null,null,null,null,null,null,null,null,null,null,null,null,null,null,null,null,null,null,null,null,null,null,null,null,null,null,null,null,null,null,null,null,null,null,null,null,null,null,null,null,null,null,null,null,null,0,0]
[null,null,null,null,null,null,null,null,null,null,null,null,null,null,null,null,null,null,null,null,null,null,null,null,null,null,null,null,null,null,null,null,null,null,null,null,null,null,null,null,null,null,null,null,null,null,null,null,null,null,null,null,null,null,null,null,null,null,null,null,null,null,null,null,null,null,null,null,null,null,null,null,null,null,null,null,null,null,null,null,null,null,null,null,null,null,null,null,null,null,null,null,null,null,null,null,null,null,null,null,null,null,null,null,0,0]
[null,null,null,null,null,null,null,null,null,null,null,null,null,null,null,null,null,null,null,null,null,null,null,null,null,null,null,null,null,null,null,null,null,null,null,null,null,null,null,null,null,null,null,null,null,null,null,null,null,null,null,null,null,null,null,null,null,null,null,null,null,null,null,null,null,null,null,null,null,null,null,null,null,null,null,null,null,null,null,null,null,null,null,null,null,null,null,null,null,null,null,null,null,null,null,null,null,null,null,null,null,null,null,null,0,0]
[null,null,null,null,null,null,null,null,null,null,null,null,null,null,null,null,null,null,null,null,null,null,null,null,null,null,null,null,null,null,null,null,null,null,null,null,null,null,null,null,null,null,null,null,null,null,null,null,null,null,null,null,null,null,null,null,null,null,null,null,null,null,null,null,null,null,null,null,null,null,null,null,null,null,null,null,null,null,null,null,null,null,null,null,null,null,null,null,null,null,null,null,null,null,null,null,null,null,null,null,null,null,null,null,0,0]
[null,null,null,null,null,null,null,null,null,null,null,null,null,null,null,null,null,null,null,null,null,null,null,null,null,null,null,null,null,null,null,null,null,null,null,null,null,null,null,null,null,null,null,null,null,null,null,null,null,null,null,null,null,null,null,null,null,null,null,null,null,null,null,null,null,null,null,null,null,null,null,null,null,null,null,null,null,null,null,null,null,null,null,null,null,null,null,null,null,null,null,null,null,null,null,null,null,null,null,null,null,null,null,null,0,0]
[null,null,null,null,null,null,null,null,null,null,null,null,null,null,null,null,null,null,null,null,null,null,null,null,null,null,null,null,null,null,null,null,null,null,null,null,null,null,null,null,null,null,null,null,null,null,null,null,null,null,null,null,null,null,null,null,null,null,null,null,null,null,null,null,null,null,null,null,null,null,null,null,null,null,null,null,null,null,null,null,null,null,null,null,null,null,null,null,null,null,null,null,null,null,null,null,null,null,null,null,null,null,null,null,0,0]
[null,null,null,null,null,null,null,null,null,null,null,null,null,null,null,null,null,null,null,null,null,null,null,null,null,null,null,null,null,null,null,null,null,null,null,null,null,null,null,null,null,null,null,null,null,null,null,null,null,null,null,null,null,null,null,null,null,null,null,null,null,null,null,null,null,null,null,null,null,null,null,null,null,null,null,null,null,null,null,null,null,null,null,null,null,null,null,null,null,null,null,null,null,null,null,null,null,null,null,null,null,null,null,null,0,0]
[null,null,null,null,null,null,null,null,null,null,null,null,null,null,null,null,null,null,null,null,null,null,null,null,null,null,null,null,null,null,null,null,null,null,null,null,null,null,null,null,null,null,null,null,null,null,null,null,null,null,null,null,null,null,null,null,null,null,null,null,null,null,null,null,null,null,null,null,null,null,null,null,null,null,null,null,null,null,null,null,null,null,null,null,null,null,null,null,null,null,null,null,null,null,null,null,null,null,null,null,null,null,null,null,0,0]
[null,null,null,null,null,null,null,null,null,null,null,null,null,null,null,null,null,null,null,null,null,null,null,null,null,null,null,null,null,null,null,null,null,null,null,null,null,null,null,null,null,null,null,null,null,null,null,null,null,null,null,null,null,null,null,null,null,null,null,null,null,null,null,null,null,null,null,null,null,null,null,null,null,null,null,null,null,null,null,null,null,null,null,null,null,null,null,null,null,null,null,null,null,null,null,null,null,null,null,null,null,null,null,null,0,0]
[null,null,null,null,null,null,null,null,null,null,null,null,null,null,null,null,null,null,null,null,null,null,null,null,null,null,null,null,null,null,null,null,null,null,null,null,null,null,null,null,null,null,null,null,null,null,null,null,null,null,null,null,null,null,null,null,null,null,null,null,null,null,null,null,null,null,null,null,null,null,null,null,null,null,null,null,null,null,null,null,null,null,null,null,null,null,null,null,null,null,null,null,null,null,null,null,null,null,null,null,null,null,null,null,0,0]
[null,null,null,null,null,null,null,null,null,null,null,null,null,null,null,null,null,null,null,null,null,null,null,null,null,null,null,null,null,null,null,null,null,null,null,null,null,null,null,null,null,null,null,null,null,null,null,null,null,null,null,null,null,null,null,null,null,null,null,null,null,null,null,null,null,null,null,null,null,null,null,null,null,null,null,null,null,null,null,null,null,null,null,null,null,null,null,null,null,null,null,null,null,null,null,null,null,null,null,null,null,null,null,null,0,0]
[null,null,null,null,null,null,null,null,null,null,null,null,null,null,null,null,null,null,null,null,null,null,null,null,null,null,null,null,null,null,null,null,null,null,null,null,null,null,null,null,null,null,null,null,null,null,null,null,null,null,null,null,null,null,null,null,null,null,null,null,null,null,null,null,null,null,null,null,null,null,null,null,null,null,null,null,null,null,null,null,null,null,null,null,null,null,null,null,null,null,null,null,null,null,null,null,null,null,null,null,null,null,null,null,0,0]
[null,null,null,null,null,null,null,null,null,null,null,null,null,null,null,null,null,null,null,null,null,null,null,null,null,null,null,null,null,null,null,null,null,null,null,null,null,null,null,null,null,null,null,null,null,null,null,null,null,null,null,null,null,null,null,null,null,null,null,null,null,null,null,null,null,null,null,null,null,null,null,null,null,null,null,null,null,null,null,null,null,null,null,null,null,null,null,null,null,null,null,null,null,null,null,null,null,null,null,null,null,null,null,null,0,0]
[null,null,null,null,null,null,null,null,null,null,null,null,null,null,null,null,null,null,null,null,null,null,null,null,null,null,null,null,null,null,null,null,null,null,null,null,null,null,null,null,null,null,null,null,null,null,null,null,null,null,null,null,null,null,null,null,null,null,null,null,null,null,null,null,null,null,null,null,null,null,null,null,null,null,null,null,null,null,null,null,null,null,null,null,null,null,null,null,null,null,null,null,null,null,null,null,null,null,null,null,null,null,null,null,0,0]
[null,null,null,null,null,null,null,null,null,null,null,null,null,null,null,null,null,null,null,null,null,null,null,null,null,null,null,null,null,null,null,null,null,null,null,null,null,null,null,null,null,null,null,null,null,null,null,null,null,null,null,null,null,null,null,null,null,null,null,null,null,null,null,null,null,null,null,null,null,null,null,null,null,null,null,null,null,null,null,null,null,null,null,null,null,null,null,null,null,null,null,null,null,null,null,null,null,null,null,null,null,null,null,null,0,0]
[null,null,null,null,null,null,null,null,null,null,null,null,null,null,null,null,null,null,null,null,null,null,null,null,null,null,null,null,null,null,null,null,null,null,null,null,null,null,null,null,null,null,null,null,null,null,null,null,null,null,null,null,null,null,null,null,null,null,null,null,null,null,null,null,null,null,null,null,null,null,null,null,null,null,null,null,null,null,null,null,null,null,null,null,null,null,null,null,null,null,null,null,null,null,null,null,null,null,null,null,null,null,null,null,0,0]
[null,null,null,null,null,null,null,null,null,null,null,null,null,null,null,null,null,null,null,null,null,null,null,null,null,null,null,null,null,null,null,null,null,null,null,null,null,null,null,null,null,null,null,null,null,null,null,null,null,null,null,null,null,null,null,null,null,null,null,null,null,null,null,null,null,null,null,null,null,null,null,null,null,null,null,null,null,null,null,null,null,null,null,null,null,null,null,null,null,null,null,null,null,null,null,null,null,null,null,null,null,null,null,null,0,0]
[null,null,null,null,null,null,null,null,null,null,null,null,null,null,null,null,null,null,null,null,null,null,null,null,null,null,null,null,null,null,null,null,null,null,null,null,null,null,null,null,null,null,null,null,null,null,null,null,null,null,null,null,null,null,null,null,null,null,null,null,null,null,null,null,null,null,null,null,null,null,null,null,null,null,null,null,null,null,null,null,null,null,null,null,null,null,null,null,null,null,null,null,null,null,null,null,null,null,null,null,null,null,null,null,0,0]
[null,null,null,null,null,null,null,null,null,null,null,null,null,null,null,null,null,null,null,null,null,null,null,null,null,null,null,null,null,null,null,null,null,null,null,null,null,null,null,null,null,null,null,null,null,null,null,null,null,null,null,null,null,null,null,null,null,null,null,null,null,null,null,null,null,null,null,null,null,null,null,null,null,null,null,null,null,null,null,null,null,null,null,null,null,null,null,null,null,null,null,null,null,null,null,null,null,null,null,null,null,null,null,null,0,0]
[null,null,null,null,null,null,null,null,null,null,null,null,null,null,null,null,null,null,null,null,null,null,null,null,null,null,null,null,null,null,null,null,null,null,null,null,null,null,null,null,null,null,null,null,null,null,null,null,null,null,null,null,null,null,null,null,null,null,null,null,null,null,null,null,null,null,null,null,null,null,null,null,null,null,null,null,null,null,null,null,null,null,null,null,null,null,null,null,null,null,null,null,null,null,null,null,null,null,null,null,null,null,null,null,0,0]
[null,null,null,null,null,null,null,null,null,null,null,null,null,null,null,null,null,null,null,null,null,null,null,null,null,null,null,null,null,null,null,null,null,null,null,null,null,null,null,null,null,null,null,null,null,null,null,null,null,null,null,null,null,null,null,null,null,null,null,null,null,null,null,null,null,null,null,null,null,null,null,null,null,null,null,null,null,null,null,null,null,null,null,null,null,null,null,null,null,null,null,null,null,null,null,null,null,null,null,null,null,null,null,null,0,0]
[null,null,null,null,null,null,null,null,null,null,null,null,null,null,null,null,null,null,null,null,null,null,null,null,null,null,null,null,null,null,null,null,null,null,null,null,null,null,null,null,null,null,null,null,null,null,null,null,null,null,null,null,null,null,null,null,null,null,null,null,null,null,null,null,null,null,null,null,null,null,null,null,null,null,null,null,null,null,null,null,null,null,null,null,null,null,null,null,null,null,null,null,null,null,null,null,null,null,null,null,null,null,null,null,{"$f":"COUNTA(I68,L68,O68,R68,U68,X68)","v":0},{"$f":"COUNTA(AA68,AD68,AG68,AJ68)","v":0}]
[null,null,null,null,null,null,null,null,null,null,null,null,null,null,null,null,null,null,null,null,null,null,null,null,null,null,null,null,null,null,null,null,null,null,null,null,null,null,null,null,null,null,null,null,null,null,null,null,null,null,null,null,null,null,null,null,null,null,null,null,null,null,null,null,null,null,null,null,null,null,null,null,null,null,null,null,null,null,null,null,null,null,null,null,null,null,null,null,null,null,null,null,null,null,null,null,null,null,null,null,null,null,null,null,0,0]
[null,null,null,null,null,null,null,null,null,null,null,null,null,null,null,null,null,null,null,null,null,null,null,null,null,null,null,null,null,null,null,null,null,null,null,null,null,null,null,null,null,null,null,null,null,null,null,null,null,null,null,null,null,null,null,null,null,null,null,null,null,null,null,null,null,null,null,null,null,null,null,null,null,null,null,null,null,null,null,null,null,null,null,null,null,null,null,null,null,null,null,null,null,null,null,null,null,null,null,null,null,null,null,null,0,0]
[null,null,null,null,null,null,null,null,null,null,null,null,null,null,null,null,null,null,null,null,null,null,null,null,null,null,null,null,null,null,null,null,null,null,null,null,null,null,null,null,null,null,null,null,null,null,null,null,null,null,null,null,null,null,null,null,null,null,null,null,null,null,null,null,null,null,null,null,null,null,null,null,null,null,null,null,null,null,null,null,null,null,null,null,null,null,null,null,null,null,null,null,null,null,null,null,null,null,null,null,null,null,null,null,0,0]
[null,null,null,null,null,null,null,null,null,null,null,null,null,null,null,null,null,null,null,null,null,null,null,null,null,null,null,null,null,null,null,null,null,null,null,null,null,null,null,null,null,null,null,null,null,null,null,null,null,null,null,null,null,null,null,null,null,null,null,null,null,null,null,null,null,null,null,null,null,null,null,null,null,null,null,null,null,null,null,null,null,null,null,null,null,null,null,null,null,null,null,null,null,null,null,null,null,null,null,null,null,null,null,null,0,0]
[null,null,null,null,null,null,null,null,null,null,null,null,null,null,null,null,null,null,null,null,null,null,null,null,null,null,null,null,null,null,null,null,null,null,null,null,null,null,null,null,null,null,null,null,null,null,null,null,null,null,null,null,null,null,null,null,null,null,null,null,null,null,null,null,null,null,null,null,null,null,null,null,null,null,null,null,null,null,null,null,null,null,null,null,null,null,null,null,null,null,null,null,null,null,null,null,null,null,null,null,null,null,null,null,0,0]
[null,null,null,null,null,null,null,null,null,null,null,null,null,null,null,null,null,null,null,null,null,null,null,null,null,null,null,null,null,null,null,null,null,null,null,null,null,null,null,null,null,null,null,null,null,null,null,null,null,null,null,null,null,null,null,null,null,null,null,null,null,null,null,null,null,null,null,null,null,null,null,null,null,null,null,null,null,null,null,null,null,null,null,null,null,null,null,null,null,null,null,null,null,null,null,null,null,null,null,null,null,null,null,null,0,0]
[null,null,null,null,null,null,null,null,null,null,null,null,null,null,null,null,null,null,null,null,null,null,null,null,null,null,null,null,null,null,null,null,null,null,null,null,null,null,null,null,null,null,null,null,null,null,null,null,null,null,null,null,null,null,null,null,null,null,null,null,null,null,null,null,null,null,null,null,null,null,null,null,null,null,null,null,null,null,null,null,null,null,null,null,null,null,null,null,null,null,null,null,null,null,null,null,null,null,null,null,null,null,null,null,0,0]
[null,null,null,null,null,null,null,null,null,null,null,null,null,null,null,null,null,null,null,null,null,null,null,null,null,null,null,null,null,null,null,null,null,null,null,null,null,null,null,null,null,null,null,null,null,null,null,null,null,null,null,null,null,null,null,null,null,null,null,null,null,null,null,null,null,null,null,null,null,null,null,null,null,null,null,null,null,null,null,null,null,null,null,null,null,null,null,null,null,null,null,null,null,null,null,null,null,null,null,null,null,null,null,null,0,0]
[null,null,null,null,null,null,null,null,null,null,null,null,null,null,null,null,null,null,null,null,null,null,null,null,null,null,null,null,null,null,null,null,null,null,null,null,null,null,null,null,null,null,null,null,null,null,null,null,null,null,null,null,null,null,null,null,null,null,null,null,null,null,null,null,null,null,null,null,null,null,null,null,null,null,null,null,null,null,null,null,null,null,null,null,null,null,null,null,null,null,null,null,null,null,null,null,null,null,null,null,null,null,null,null,0,0]
[null,null,null,null,null,null,null,null,null,null,null,null,null,null,null,null,null,null,null,null,null,null,null,null,null,null,null,null,null,null,null,null,null,null,null,null,null,null,null,null,null,null,null,null,null,null,null,null,null,null,null,null,null,null,null,null,null,null,null,null,null,null,null,null,null,null,null,null,null,null,null,null,null,null,null,null,null,null,null,null,null,null,null,null,null,null,null,null,null,null,null,null,null,null,null,null,null,null,null,null,null,null,null,null,0,0]
[null,null,null,null,null,null,null,null,null,null,null,null,null,null,null,null,null,null,null,null,null,null,null,null,null,null,null,null,null,null,null,null,null,null,null,null,null,null,null,null,null,null,null,null,null,null,null,null,null,null,null,null,null,null,null,null,null,null,null,null,null,null,null,null,null,null,null,null,null,null,null,null,null,null,null,null,null,null,null,null,null,null,null,null,null,null,null,null,null,null,null,null,null,null,null,null,null,null,null,null,null,null,null,null,0,0]
[null,null,null,null,null,null,null,null,null,null,null,null,null,null,null,null,null,null,null,null,null,null,null,null,null,null,null,null,null,null,null,null,null,null,null,null,null,null,null,null,null,null,null,null,null,null,null,null,null,null,null,null,null,null,null,null,null,null,null,null,null,null,null,null,null,null,null,null,null,null,null,null,null,null,null,null,null,null,null,null,null,null,null,null,null,null,null,null,null,null,null,null,null,null,null,null,null,null,null,null,null,null,null,null,0,0]
[null,null,null,null,null,null,null,null,null,null,null,null,null,null,null,null,null,null,null,null,null,null,null,null,null,null,null,null,null,null,null,null,null,null,null,null,null,null,null,null,null,null,null,null,null,null,null,null,null,null,null,null,null,null,null,null,null,null,null,null,null,null,null,null,null,null,null,null,null,null,null,null,null,null,null,null,null,null,null,null,null,null,null,null,null,null,null,null,null,null,null,null,null,null,null,null,null,null,null,null,null,null,null,null,0,0]
[null,null,null,null,null,null,null,null,null,null,null,null,null,null,null,null,null,null,null,null,null,null,null,null,null,null,null,null,null,null,null,null,null,null,null,null,null,null,null,null,null,null,null,null,null,null,null,null,null,null,null,null,null,null,null,null,null,null,null,null,null,null,null,null,null,null,null,null,null,null,null,null,null,null,null,null,null,null,null,null,null,null,null,null,null,null,null,null,null,null,null,null,null,null,null,null,null,null,null,null,null,null,null,null,0,0]
[null,null,null,null,null,null,null,null,null,null,null,null,null,null,null,null,null,null,null,null,null,null,null,null,null,null,null,null,null,null,null,null,null,null,null,null,null,null,null,null,null,null,null,null,null,null,null,null,null,null,null,null,null,null,null,null,null,null,null,null,null,null,null,null,null,null,null,null,null,null,null,null,null,null,null,null,null,null,null,null,null,null,null,null,null,null,null,null,null,null,null,null,null,null,null,null,null,null,null,null,null,null,null,null,0,0]
[null,null,null,null,null,null,null,null,null,null,null,null,null,null,null,null,null,null,null,null,null,null,null,null,null,null,null,null,null,null,null,null,null,null,null,null,null,null,null,null,null,null,null,null,null,null,null,null,null,null,null,null,null,null,null,null,null,null,null,null,null,null,null,null,null,null,null,null,null,null,null,null,null,null,null,null,null,null,null,null,null,null,null,null,null,null,null,null,null,null,null,null,null,null,null,null,null,null,null,null,null,null,null,null,0,0]
[null,null,null,null,null,null,null,null,null,null,null,null,null,null,null,null,null,null,null,null,null,null,null,null,null,null,null,null,null,null,null,null,null,null,null,null,null,null,null,null,null,null,null,null,null,null,null,null,null,null,null,null,null,null,null,null,null,null,null,null,null,null,null,null,null,null,null,null,null,null,null,null,null,null,null,null,null,null,null,null,null,null,null,null,null,null,null,null,null,null,null,null,null,null,null,null,null,null,null,null,null,null,null,null,0,0]
[null,null,null,null,null,null,null,null,null,null,null,null,null,null,null,null,null,null,null,null,null,null,null,null,null,null,null,null,null,null,null,null,null,null,null,null,null,null,null,null,null,null,null,null,null,null,null,null,null,null,null,null,null,null,null,null,null,null,null,null,null,null,null,null,null,null,null,null,null,null,null,null,null,null,null,null,null,null,null,null,null,null,null,null,null,null,null,null,null,null,null,null,null,null,null,null,null,null,null,null,null,null,null,null,0,0]
[null,null,null,null,null,null,null,null,null,null,null,null,null,null,null,null,null,null,null,null,null,null,null,null,null,null,null,null,null,null,null,null,null,null,null,null,null,null,null,null,null,null,null,null,null,null,null,null,null,null,null,null,null,null,null,null,null,null,null,null,null,null,null,null,null,null,null,null,null,null,null,null,null,null,null,null,null,null,null,null,null,null,null,null,null,null,null,null,null,null,null,null,null,null,null,null,null,null,null,null,null,null,null,null,0,0]
[null,null,null,null,null,null,null,null,null,null,null,null,null,null,null,null,null,null,null,null,null,null,null,null,null,null,null,null,null,null,null,null,null,null,null,null,null,null,null,null,null,null,null,null,null,null,null,null,null,null,null,null,null,null,null,null,null,null,null,null,null,null,null,null,null,null,null,null,null,null,null,null,null,null,null,null,null,null,null,null,null,null,null,null,null,null,null,null,null,null,null,null,null,null,null,null,null,null,null,null,null,null,null,null,0,0]
[null,null,null,null,null,null,null,null,null,null,null,null,null,null,null,null,null,null,null,null,null,null,null,null,null,null,null,null,null,null,null,null,null,null,null,null,null,null,null,null,null,null,null,null,null,null,null,null,null,null,null,null,null,null,null,null,null,null,null,null,null,null,null,null,null,null,null,null,null,null,null,null,null,null,null,null,null,null,null,null,null,null,null,null,null,null,null,null,null,null,null,null,null,null,null,null,null,null,null,null,null,null,null,null,0,0]
[null,null,null,null,null,null,null,null,null,null,null,null,null,null,null,null,null,null,null,null,null,null,null,null,null,null,null,null,null,null,null,null,null,null,null,null,null,null,null,null,null,null,null,null,null,null,null,null,null,null,null,null,null,null,null,null,null,null,null,null,null,null,null,null,null,null,null,null,null,null,null,null,null,null,null,null,null,null,null,null,null,null,null,null,null,null,null,null,null,null,null,null,null,null,null,null,null,null,null,null,null,null,null,null,0,0]
[null,null,null,null,null,null,null,null,null,null,null,null,null,null,null,null,null,null,null,null,null,null,null,null,null,null,null,null,null,null,null,null,null,null,null,null,null,null,null,null,null,null,null,null,null,null,null,null,null,null,null,null,null,null,null,null,null,null,null,null,null,null,null,null,null,null,null,null,null,null,null,null,null,null,null,null,null,null,null,null,null,null,null,null,null,null,null,null,null,null,null,null,null,null,null,null,null,null,null,null,null,null,null,null,0,0]
[null,null,null,null,null,null,null,null,null,null,null,null,null,null,null,null,null,null,null,null,null,null,null,null,null,null,null,null,null,null,null,null,null,null,null,null,null,null,null,null,null,null,null,null,null,null,null,null,null,null,null,null,null,null,null,null,null,null,null,null,null,null,null,null,null,null,null,null,null,null,null,null,null,null,null,null,null,null,null,null,null,null,null,null,null,null,null,null,null,null,null,null,null,null,null,null,null,null,null,null,null,null,null,null,0,0]
[null,null,null,null,null,null,null,null,null,null,null,null,null,null,null,null,null,null,null,null,null,null,null,null,null,null,null,null,null,null,null,null,null,null,null,null,null,null,null,null,null,null,null,null,null,null,null,null,null,null,null,null,null,null,null,null,null,null,null,null,null,null,null,null,null,null,null,null,null,null,null,null,null,null,null,null,null,null,null,null,null,null,null,null,null,null,null,null,null,null,null,null,null,null,null,null,null,null,null,null,null,null,null,null,0,0]
[null,null,null,null,null,null,null,null,null,null,null,null,null,null,null,null,null,null,null,null,null,null,null,null,null,null,null,null,null,null,null,null,null,null,null,null,null,null,null,null,null,null,null,null,null,null,null,null,null,null,null,null,null,null,null,null,null,null,null,null,null,null,null,null,null,null,null,null,null,null,null,null,null,null,null,null,null,null,null,null,null,null,null,null,null,null,null,null,null,null,null,null,null,null,null,null,null,null,null,null,null,null,null,null,0,0]
[null,null,null,null,null,null,null,null,null,null,null,null,null,null,null,null,null,null,null,null,null,null,null,null,null,null,null,null,null,null,null,null,null,null,null,null,null,null,null,null,null,null,null,null,null,null,null,null,null,null,null,null,null,null,null,null,null,null,null,null,null,null,null,null,null,null,null,null,null,null,null,null,null,null,null,null,null,null,null,null,null,null,null,null,null,null,null,null,null,null,null,null,null,null,null,null,null,null,null,null,null,null,null,null,0,0]
[null,null,null,null,null,null,null,null,null,null,null,null,null,null,null,null,null,null,null,null,null,null,null,null,null,null,null,null,null,null,null,null,null,null,null,null,null,null,null,null,null,null,null,null,null,null,null,null,null,null,null,null,null,null,null,null,null,null,null,null,null,null,null,null,null,null,null,null,null,null,null,null,null,null,null,null,null,null,null,null,null,null,null,null,null,null,null,null,null,null,null,null,null,null,null,null,null,null,null,null,null,null,null,null,0,0]
[null,null,null,null,null,null,null,null,null,null,null,null,null,null,null,null,null,null,null,null,null,null,null,null,null,null,null,null,null,null,null,null,null,null,null,null,null,null,null,null,null,null,null,null,null,null,null,null,null,null,null,null,null,null,null,null,null,null,null,null,null,null,null,null,null,null,null,null,null,null,null,null,null,null,null,null,null,null,null,null,null,null,null,null,null,null,null,null,null,null,null,null,null,null,null,null,null,null,null,null,null,null,null,null,0,0]
[null,null,null,null,null,null,null,null,null,null,null,null,null,null,null,null,null,null,null,null,null,null,null,null,null,null,null,null,null,null,null,null,null,null,null,null,null,null,null,null,null,null,null,null,null,null,null,null,null,null,null,null,null,null,null,null,null,null,null,null,null,null,null,null,null,null,null,null,null,null,null,null,null,null,null,null,null,null,null,null,null,null,null,null,null,null,null,null,null,null,null,null,null,null,null,null,null,null,null,null,null,null,null,null,0,0]
[null,null,null,null,null,null,null,null,null,null,null,null,null,null,null,null,null,null,null,null,null,null,null,null,null,null,null,null,null,null,null,null,null,null,null,null,null,null,null,null,null,null,null,null,null,null,null,null,null,null,null,null,null,null,null,null,null,null,null,null,null,null,null,null,null,null,null,null,null,null,null,null,null,null,null,null,null,null,null,null,null,null,null,null,null,null,null,null,null,null,null,null,null,null,null,null,null,null,null,null,null,null,null,null,0,0]
[null,null,null,null,null,null,null,null,null,null,null,null,null,null,null,null,null,null,null,null,null,null,null,null,null,null,null,null,null,null,null,null,null,null,null,null,null,null,null,null,null,null,null,null,null,null,null,null,null,null,null,null,null,null,null,null,null,null,null,null,null,null,null,null,null,null,null,null,null,null,null,null,null,null,null,null,null,null,null,null,null,null,null,null,null,null,null,null,null,null,null,null,null,null,null,null,null,null,null,null,null,null,null,null,0,0]
[null,null,null,null,null,null,null,null,null,null,null,null,null,null,null,null,null,null,null,null,null,null,null,null,null,null,null,null,null,null,null,null,null,null,null,null,null,null,null,null,null,null,null,null,null,null,null,null,null,null,null,null,null,null,null,null,null,null,null,null,null,null,null,null,null,null,null,null,null,null,null,null,null,null,null,null,null,null,null,null,null,null,null,null,null,null,null,null,null,null,null,null,null,null,null,null,null,null,null,null,null,null,null,null,0,0]
[null,null,null,null,null,null,null,null,null,null,null,null,null,null,null,null,null,null,null,null,null,null,null,null,null,null,null,null,null,null,null,null,null,null,null,null,null,null,null,null,null,null,null,null,null,null,null,null,null,null,null,null,null,null,null,null,null,null,null,null,null,null,null,null,null,null,null,null,null,null,null,null,null,null,null,null,null,null,null,null,null,null,null,null,null,null,null,null,null,null,null,null,null,null,null,null,null,null,null,null,null,null,null,null,0,0]

{"sheet":"生年月日","index":3,"n_rows":46,"n_cols":33,"rows_kept":46,"cut":false,"hidden":true,"merged":[]}
["生年月日Ｆ","生年月日Ｔ","年齢","S女部門コード","S女部門名","S男部門コード","S男部門名","2B女部門コード","2B女部門名","2B男部門コード","2B男部門名","3B女部門コード","3B女部門名","3B男部門コード","3B男部門名","SS部門コード","SS部門名","D部門コード","D部門名","P部門コード","P部門名","FS女部門コード","FS女部門名","FS男部門コード","FS男部門名","FP部門コード","FP部門名","AT女部門コード","AT女部門名","AT男部門コード","AT男部門名","AP部門コード","AT部門名"]
["2014-01-01","2015-04-01",7,1,"女子アンダージュニアⅠ",8,"男子アンダージュニア",3,"女子アンダージュニア",8,"男子アンダージュニア",3,"女子アンダージュニア",8,"男子アンダージュニア",11,"アンダージュニア",11,"アンダージュニア",11,"アンダージュニア",0,"ｴﾝﾄﾘｰ不可Σ(￣ロ￣lll)",0,"ｴﾝﾄﾘｰ不可Σ(￣ロ￣lll)",0,"ｴﾝﾄﾘｰ不可Σ(￣ロ￣lll)",0,"ｴﾝﾄﾘｰ不可Σ(￣ロ￣lll)",0,"ｴﾝﾄﾘｰ不可Σ(￣ロ￣lll)",0,"ｴﾝﾄﾘｰ不可Σ(￣ロ￣lll)"]
["2013-01-01","2013-12-31",8,1,"女子アンダージュニアⅠ",8,"男子アンダージュニア",3,"女子アンダージュニア",8,"男子アンダージュニア",3,"女子アンダージュニア",8,"男子アンダージュニア",11,"アンダージュニア",11,"アンダージュニア",11,"アンダージュニア",0,"ｴﾝﾄﾘｰ不可Σ(￣ロ￣lll)",0,"ｴﾝﾄﾘｰ不可Σ(￣ロ￣lll)",0,"ｴﾝﾄﾘｰ不可Σ(￣ロ￣lll)",0,"ｴﾝﾄﾘｰ不可Σ(￣ロ￣lll)",0,"ｴﾝﾄﾘｰ不可Σ(￣ロ￣lll)",0,"ｴﾝﾄﾘｰ不可Σ(￣ロ￣lll)"]
["2012-01-01","2012-12-31",9,2,"女子アンダージュニアⅡ",8,"男子アンダージュニア",3,"女子アンダージュニア",8,"男子アンダージュニア",3,"女子アンダージュニア",8,"男子アンダージュニア",11,"アンダージュニア",11,"アンダージュニア",11,"アンダージュニア",0,"ｴﾝﾄﾘｰ不可Σ(￣ロ￣lll)",0,"ｴﾝﾄﾘｰ不可Σ(￣ロ￣lll)",0,"ｴﾝﾄﾘｰ不可Σ(￣ロ￣lll)",0,"ｴﾝﾄﾘｰ不可Σ(￣ロ￣lll)",0,"ｴﾝﾄﾘｰ不可Σ(￣ロ￣lll)",0,"ｴﾝﾄﾘｰ不可Σ(￣ロ￣lll)"]
["2011-01-01","2011-12-31",10,2,"女子アンダージュニアⅡ",8,"男子アンダージュニア",3,"女子アンダージュニア",8,"男子アンダージュニア",3,"女子アンダージュニア",8,"男子アンダージュニア",11,"アンダージュニア",11,"アンダージュニア",11,"アンダージュニア",0,"ｴﾝﾄﾘｰ不可Σ(￣ロ￣lll)",0,"ｴﾝﾄﾘｰ不可Σ(￣ロ￣lll)",0,"ｴﾝﾄﾘｰ不可Σ(￣ロ￣lll)",0,"ｴﾝﾄﾘｰ不可Σ(￣ロ￣lll)",0,"ｴﾝﾄﾘｰ不可Σ(￣ロ￣lll)",0,"ｴﾝﾄﾘｰ不可Σ(￣ロ￣lll)"]
["2010-04-02","2010-12-31",11,2,"女子アンダージュニアⅡ",8,"男子アンダージュニア",3,"女子アンダージュニア",8,"男子アンダージュニア",3,"女子アンダージュニア",8,"男子アンダージュニア",11,"アンダージュニア",11,"アンダージュニア",11,"アンダージュニア",0,"ｴﾝﾄﾘｰ不可Σ(￣ロ￣lll)",0,"ｴﾝﾄﾘｰ不可Σ(￣ロ￣lll)",0,"ｴﾝﾄﾘｰ不可Σ(￣ロ￣lll)",0,"ｴﾝﾄﾘｰ不可Σ(￣ロ￣lll)",0,"ｴﾝﾄﾘｰ不可Σ(￣ロ￣lll)",0,"ｴﾝﾄﾘｰ不可Σ(￣ロ￣lll)"]
["2009-01-01","2010-04-01",12,4,"女子ジュニアⅠ",9,"男子ジュニア",4,"女子ジュニアⅠ",9,"男子ジュニア",4,"女子ジュニアⅠ",9,"男子ジュニア",12,"ジュニアⅠ",12,"ジュニアⅠ",12,"ジュニアⅠ",31,"女子ジュニア",34,"男子ジュニア",37,"ジュニア",41,"女子ジュニアⅠ",45,"男子ジュニア",37,"ジュニア"]
["2008-01-01","2008-12-31",13,4,"女子ジュニアⅠ",9,"男子ジュニア",4,"女子ジュニアⅠ",9,"男子ジュニア",4,"女子ジュニアⅠ",9,"男子ジュニア",12,"ジュニアⅠ",12,"ジュニアⅠ",12,"ジュニアⅠ",31,"女子ジュニア",34,"男子ジュニア",37,"ジュニア",41,"女子ジュニアⅠ",45,"男子ジュニア",37,"ジュニア"]
["2007-01-01","2007-12-31",14,5,"女子ジュニアⅡ",9,"男子ジュニア",5,"女子ジュニアⅡ",9,"男子ジュニア",5,"女子ジュニアⅡ",9,"男子ジュニア",13,"ジュニアⅡ",13,"ジュニアⅡ",13,"ジュニアⅡ",31,"女子ジュニア",34,"男子ジュニア",37,"ジュニア",42,"女子ジュニアⅡ",45,"男子ジュニア",37,"ジュニア"]
["2006-01-01","2006-12-31",15,5,"女子ジュニアⅡ",9,"男子ジュニア",5,"女子ジュニアⅡ",9,"男子ジュニア",5,"女子ジュニアⅡ",9,"男子ジュニア",13,"ジュニアⅡ",13,"ジュニアⅡ",13,"ジュニアⅡ",31,"女子ジュニア",34,"男子ジュニア",37,"ジュニア",42,"女子ジュニアⅡ",45,"男子ジュニア",37,"ジュニア"]
["2005-01-01","2005-12-31",16,5,"女子ジュニアⅡ",9,"男子ジュニア",5,"女子ジュニアⅡ",9,"男子ジュニア",5,"女子ジュニアⅡ",9,"男子ジュニア",13,"ジュニアⅡ",13,"ジュニアⅡ",13,"ジュニアⅡ",31,"女子ジュニア",34,"男子ジュニア",37,"ジュニア",42,"女子ジュニアⅡ",45,"男子ジュニア",37,"ジュニア"]
["2004-01-01","2004-12-31",17,6,"女子シニアⅠ",10,"男子シニア",6,"女子シニアⅠ",10,"男子シニア",6,"女子シニアⅠ",10,"男子シニア",14,"シニアⅠ",14,"シニアⅠ",14,"シニアⅠ",32,"女子シニア",35,"男子シニア",38,"シニア",43,"女子シニア",46,"男子シニア",38,"シニア"]
["2003-01-01","2003-12-31",18,6,"女子シニアⅠ",10,"男子シニア",6,"女子シニアⅠ",10,"男子シニア",6,"女子シニアⅠ",10,"男子シニア",14,"シニアⅠ",14,"シニアⅠ",14,"シニアⅠ",32,"女子シニア",35,"男子シニア",38,"シニア",43,"女子シニア",46,"男子シニア",38,"シニア"]
["2002-01-01","2002-12-31",19,6,"女子シニアⅠ",10,"男子シニア",6,"女子シニアⅠ",10,"男子シニア",6,"女子シニアⅠ",10,"男子シニア",14,"シニアⅠ",14,"シニアⅠ",14,"シニアⅠ",32,"女子シニア",35,"男子シニア",38,"シニア",43,"女子シニア",46,"男子シニア",38,"シニア"]
["2001-01-01","2001-12-31",20,6,"女子シニアⅠ",10,"男子シニア",6,"女子シニアⅠ",10,"男子シニア",6,"女子シニアⅠ",10,"男子シニア",14,"シニアⅠ",14,"シニアⅠ",14,"シニアⅠ",32,"女子シニア",35,"男子シニア",38,"シニア",43,"女子シニア",46,"男子シニア",38,"シニア"]
["2000-01-01","2000-12-31",21,7,"女子シニアⅡ",10,"男子シニア",7,"女子シニアⅡ",10,"男子シニア",7,"女子シニアⅡ",10,"男子シニア",15,"シニアⅡ",15,"シニアⅡ",15,"シニアⅡ",32,"女子シニア",35,"男子シニア",38,"シニア",44,"女子アダルト",46,"男子シニア",39,"アダルト"]
["1999-01-01","1999-12-31",22,7,"女子シニアⅡ",10,"男子シニア",7,"女子シニアⅡ",10,"男子シニア",7,"女子シニアⅡ",10,"男子シニア",15,"シニアⅡ",15,"シニアⅡ",15,"シニアⅡ",32,"女子シニア",35,"男子シニア",38,"シニア",44,"女子アダルト",46,"男子シニア",39,"アダルト"]
["1998-01-01","1998-12-31",23,7,"女子シニアⅡ",10,"男子シニア",7,"女子シニアⅡ",10,"男子シニア",7,"女子シニアⅡ",10,"男子シニア",15,"シニアⅡ",15,"シニアⅡ",15,"シニアⅡ",32,"女子シニア",35,"男子シニア",38,"シニア",44,"女子アダルト",46,"男子シニア",39,"アダルト"]
["1997-01-01","1997-12-31",24,7,"女子シニアⅡ",10,"男子シニア",7,"女子シニアⅡ",10,"男子シニア",7,"女子シニアⅡ",10,"男子シニア",15,"シニアⅡ",15,"シニアⅡ",15,"シニアⅡ",32,"女子シニア",35,"男子シニア",38,"シニア",44,"女子アダルト",46,"男子シニア",39,"アダルト"]
["1996-01-01","1996-12-31",25,7,"女子シニアⅡ",10,"男子シニア",7,"女子シニアⅡ",10,"男子シニア",7,"女子シニアⅡ",10,"男子シニア",15,"シニアⅡ",15,"シニアⅡ",15,"シニアⅡ",32,"女子シニア",35,"男子シニア",38,"シニア",44,"女子アダルト",46,"男子シニア",39,"アダルト"]
["1995-01-01","1995-12-31",26,7,"女子シニアⅡ",10,"男子シニア",7,"女子シニアⅡ",10,"男子シニア",7,"女子シニアⅡ",10,"男子シニア",15,"シニアⅡ",15,"シニアⅡ",15,"シニアⅡ",32,"女子シニア",35,"男子シニア",38,"シニア",44,"女子アダルト",46,"男子シニア",39,"アダルト"]
["1994-01-01","1994-12-31",27,7,"女子シニアⅡ",10,"男子シニア",7,"女子シニアⅡ",10,"男子シニア",7,"女子シニアⅡ",10,"男子シニア",15,"シニアⅡ",15,"シニアⅡ",15,"シニアⅡ",32,"女子シニア",35,"男子シニア",38,"シニア",44,"女子アダルト",46,"男子シニア",39,"アダルト"]
["1993-01-01","1993-12-31",28,7,"女子シニアⅡ",10,"男子シニア",7,"女子シニアⅡ",10,"男子シニア",7,"女子シニアⅡ",10,"男子シニア",15,"シニアⅡ",15,"シニアⅡ",15,"シニアⅡ",32,"女子シニア",35,"男子シニア",38,"シニア",44,"女子アダルト",46,"男子シニア",39,"アダルト"]
["1992-01-01","1992-12-31",29,7,"女子シニアⅡ",10,"男子シニア",7,"女子シニアⅡ",10,"男子シニア",7,"女子シニアⅡ",10,"男子シニア",15,"シニアⅡ",15,"シニアⅡ",15,"シニアⅡ",32,"女子シニア",35,"男子シニア",38,"シニア",44,"女子アダルト",46,"男子シニア",39,"アダルト"]
["1991-01-01","1991-12-31",30,7,"女子シニアⅡ",10,"男子シニア",7,"女子シニアⅡ",10,"男子シニア",7,"女子シニアⅡ",10,"男子シニア",15,"シニアⅡ",15,"シニアⅡ",15,"シニアⅡ",32,"女子シニア",35,"男子シニア",38,"シニア",44,"女子アダルト",46,"男子シニア",39,"アダルト"]
["1990-01-01","1990-12-31",31,7,"女子シニアⅡ",10,"男子シニア",7,"女子シニアⅡ",10,"男子シニア",7,"女子シニアⅡ",10,"男子シニア",15,"シニアⅡ",15,"シニアⅡ",15,"シニアⅡ",32,"女子シニア",35,"男子シニア",38,"シニア",44,"女子アダルト",46,"男子シニア",39,"アダルト"]
["1989-01-01","1989-12-31",32,7,"女子シニアⅡ",10,"男子シニア",7,"女子シニアⅡ",10,"男子シニア",7,"女子シニアⅡ",10,"男子シニア",15,"シニアⅡ",15,"シニアⅡ",15,"シニアⅡ",32,"女子シニア",35,"男子シニア",38,"シニア",44,"女子アダルト",46,"男子シニア",39,"アダルト"]
["1988-01-01","1988-12-31",33,7,"女子シニアⅡ",10,"男子シニア",7,"女子シニアⅡ",10,"男子シニア",7,"女子シニアⅡ",10,"男子シニア",15,"シニアⅡ",15,"シニアⅡ",15,"シニアⅡ",32,"女子シニア",35,"男子シニア",38,"シニア",44,"女子アダルト",46,"男子シニア",39,"アダルト"]
["1987-01-01","1987-12-31",34,7,"女子シニアⅡ",10,"男子シニア",7,"女子シニアⅡ",10,"男子シニア",7,"女子シニアⅡ",10,"男子シニア",15,"シニアⅡ",15,"シニアⅡ",15,"シニアⅡ",32,"女子シニア",35,"男子シニア",38,"シニア",44,"女子アダルト",46,"男子シニア",39,"アダルト"]
["1986-01-01","1986-12-31",35,7,"女子シニアⅡ",10,"男子シニア",7,"女子シニアⅡ",10,"男子シニア",7,"女子シニアⅡ",10,"男子シニア",15,"シニアⅡ",15,"シニアⅡ",15,"シニアⅡ",32,"女子シニア",35,"男子シニア",38,"シニア",44,"女子アダルト",46,"男子シニア",39,"アダルト"]
["1985-01-01","1985-12-31",36,7,"女子シニアⅡ",10,"男子シニア",7,"女子シニアⅡ",10,"男子シニア",7,"女子シニアⅡ",10,"男子シニア",15,"シニアⅡ",15,"シニアⅡ",15,"シニアⅡ",32,"女子シニア",35,"男子シニア",38,"シニア",44,"女子アダルト",46,"男子シニア",39,"アダルト"]
["1984-01-01","1984-12-31",37,7,"女子シニアⅡ",10,"男子シニア",7,"女子シニアⅡ",10,"男子シニア",7,"女子シニアⅡ",10,"男子シニア",15,"シニアⅡ",15,"シニアⅡ",15,"シニアⅡ",32,"女子シニア",35,"男子シニア",38,"シニア",44,"女子アダルト",46,"男子シニア",39,"アダルト"]
["1983-01-01","1983-12-31",38,7,"女子シニアⅡ",10,"男子シニア",7,"女子シニアⅡ",10,"男子シニア",7,"女子シニアⅡ",10,"男子シニア",15,"シニアⅡ",15,"シニアⅡ",15,"シニアⅡ",32,"女子シニア",35,"男子シニア",38,"シニア",44,"女子アダルト",46,"男子シニア",39,"アダルト"]
["1982-01-01","1982-12-31",39,7,"女子シニアⅡ",10,"男子シニア",7,"女子シニアⅡ",10,"男子シニア",7,"女子シニアⅡ",10,"男子シニア",15,"シニアⅡ",15,"シニアⅡ",15,"シニアⅡ",32,"女子シニア",35,"男子シニア",38,"シニア",44,"女子アダルト",46,"男子シニア",39,"アダルト"]
["1981-01-01","1981-12-31",40,7,"女子シニアⅡ",10,"男子シニア",7,"女子シニアⅡ",10,"男子シニア",7,"女子シニアⅡ",10,"男子シニア",15,"シニアⅡ",15,"シニアⅡ",15,"シニアⅡ",32,"女子シニア",35,"男子シニア",38,"シニア",44,"女子アダルト",46,"男子シニア",39,"アダルト"]
["1980-01-01","1980-12-31",41,7,"女子シニアⅡ",10,"男子シニア",7,"女子シニアⅡ",10,"男子シニア",7,"女子シニアⅡ",10,"男子シニア",15,"シニアⅡ",15,"シニアⅡ",15,"シニアⅡ",32,"女子シニア",35,"男子シニア",38,"シニア",44,"女子アダルト",46,"男子シニア",39,"アダルト"]
["1979-01-01","1979-12-31",42,7,"女子シニアⅡ",10,"男子シニア",7,"女子シニアⅡ",10,"男子シニア",7,"女子シニアⅡ",10,"男子シニア",15,"シニアⅡ",15,"シニアⅡ",15,"シニアⅡ",32,"女子シニア",35,"男子シニア",38,"シニア",44,"女子アダルト",46,"男子シニア",39,"アダルト"]
["1978-01-01","1978-12-31",43,7,"女子シニアⅡ",10,"男子シニア",7,"女子シニアⅡ",10,"男子シニア",7,"女子シニアⅡ",10,"男子シニア",15,"シニアⅡ",15,"シニアⅡ",15,"シニアⅡ",32,"女子シニア",35,"男子シニア",38,"シニア",44,"女子アダルト",46,"男子シニア",39,"アダルト"]
["1977-01-01","1977-12-31",44,7,"女子シニアⅡ",10,"男子シニア",7,"女子シニアⅡ",10,"男子シニア",7,"女子シニアⅡ",10,"男子シニア",15,"シニアⅡ",15,"シニアⅡ",15,"シニアⅡ",32,"女子シニア",35,"男子シニア",38,"シニア",44,"女子アダルト",46,"男子シニア",39,"アダルト"]
["1976-01-01","1976-12-31",45,7,"女子シニアⅡ",10,"男子シニア",7,"女子シニアⅡ",10,"男子シニア",7,"女子シニアⅡ",10,"男子シニア",15,"シニアⅡ",15,"シニアⅡ",15,"シニアⅡ",32,"女子シニア",35,"男子シニア",38,"シニア",44,"女子アダルト",46,"男子シニア",39,"アダルト"]
["1975-01-01","1975-12-31",46,7,"女子シニアⅡ",10,"男子シニア",7,"女子シニアⅡ",10,"男子シニア",7,"女子シニアⅡ",10,"男子シニア",15,"シニアⅡ",15,"シニアⅡ",15,"シニアⅡ",32,"女子シニア",35,"男子シニア",38,"シニア",44,"女子アダルト",46,"男子シニア",39,"アダルト"]
["1974-01-01","1974-12-31",47,7,"女子シニアⅡ",10,"男子シニア",7,"女子シニアⅡ",10,"男子シニア",7,"女子シニアⅡ",10,"男子シニア",15,"シニアⅡ",15,"シニアⅡ",15,"シニアⅡ",32,"女子シニア",35,"男子シニア",38,"シニア",44,"女子アダルト",46,"男子シニア",39,"アダルト"]
["1973-01-01","1973-12-31",48,7,"女子シニアⅡ",10,"男子シニア",7,"女子シニアⅡ",10,"男子シニア",7,"女子シニアⅡ",10,"男子シニア",15,"シニアⅡ",15,"シニアⅡ",15,"シニアⅡ",32,"女子シニア",35,"男子シニア",38,"シニア",44,"女子アダルト",46,"男子シニア",39,"アダルト"]
["1972-01-01","1972-12-31",49,7,"女子シニアⅡ",10,"男子シニア",7,"女子シニアⅡ",10,"男子シニア",7,"女子シニアⅡ",10,"男子シニア",15,"シニアⅡ",15,"シニアⅡ",15,"シニアⅡ",32,"女子シニア",35,"男子シニア",38,"シニア",44,"女子アダルト",46,"男子シニア",39,"アダルト"]
["1971-01-01","1971-12-31",50,7,"女子シニアⅡ",10,"男子シニア",7,"女子シニアⅡ",10,"男子シニア",7,"女子シニアⅡ",10,"男子シニア",15,"シニアⅡ",15,"シニアⅡ",15,"シニアⅡ",32,"女子シニア",35,"男子シニア",38,"シニア",44,"女子アダルト",46,"男子シニア",39,"アダルト"]
["1970-01-01","1970-12-31",51,7,"女子シニアⅡ",10,"男子シニア",7,"女子シニアⅡ",10,"男子シニア",7,"女子シニアⅡ",10,"男子シニア",15,"シニアⅡ",15,"シニアⅡ",15,"シニアⅡ",32,"女子シニア",35,"男子シニア",38,"シニア",44,"女子アダルト",46,"男子シニア",39,"アダルト"]

{"sheet":"部門","index":4,"n_rows":41,"n_cols":9,"rows_kept":41,"cut":false,"hidden":true,"merged":[]}
["種目コード","種目名","部門コード","部門名",null,"種目コード","種目名","部門コード","部門名"]
[6,"ソロトワール",1,"女子アンダージュニアⅠ",null,23,"フリースタイル個人",31,"女子ジュニア"]
[6,"ソロトワール",2,"女子アンダージュニアⅡ",null,23,"フリースタイル個人",32,"女子シニア"]
[6,"ソロトワール",4,"女子ジュニアⅠ",null,23,"フリースタイル個人",34,"男子ジュニア"]
[6,"ソロトワール",5,"女子ジュニアⅡ",null,23,"フリースタイル個人",35,"男子シニア"]
[6,"ソロトワール",6,"女子シニアⅠ",null,24,"フリースタイルペア",37,"ジュニア"]
[6,"ソロトワール",7,"女子シニアⅡ",null,24,"フリースタイルペア",38,"シニア"]
[6,"ソロトワール",8,"男子アンダージュニア",null,31,"アーティステックトワール",41,"女子ジュニアⅠ"]
[6,"ソロトワール",9,"男子ジュニア",null,31,"アーティステックトワール",42,"女子ジュニアⅡ"]
[6,"ソロトワール",10,"男子シニア",null,31,"アーティステックトワール",43,"女子シニア"]
[7,"トゥーバトン",3,"女子アンダージュニア",null,31,"アーティステックトワール",44,"女子アダルト"]
[7,"トゥーバトン",4,"女子ジュニアⅠ",null,31,"アーティステックトワール",45,"男子ジュニア"]
[7,"トゥーバトン",5,"女子ジュニアⅡ",null,31,"アーティステックトワール",46,"男子シニア"]
[7,"トゥーバトン",6,"女子シニアⅠ",null,32,"アーティステックペア",37,"ジュニア"]
[7,"トゥーバトン",7,"女子シニアⅡ",null,32,"アーティステックペア",38,"シニア"]
[7,"トゥーバトン",8,"男子アンダージュニア",null,32,"アーティステックペア",39,"アダルト"]
[7,"トゥーバトン",9,"男子ジュニア"]
[7,"トゥーバトン",10,"男子シニア"]
[8,"スリーバトン",3,"女子アンダージュニア"]
[8,"スリーバトン",4,"女子ジュニアⅠ"]
[8,"スリーバトン",5,"女子ジュニアⅡ"]
[8,"スリーバトン",6,"女子シニアⅠ"]
[8,"スリーバトン",7,"女子シニアⅡ"]
[8,"スリーバトン",8,"男子アンダージュニア"]
[8,"スリーバトン",9,"男子ジュニア"]
[8,"スリーバトン",10,"男子シニア"]
[9,"ペア",11,"アンダージュニア"]
[9,"ペア",12,"ジュニアⅠ"]
[9,"ペア",13,"ジュニアⅡ"]
[9,"ペア",14,"シニアⅠ"]
[9,"ペア",15,"シニアⅡ"]
[10,"ソロストラット",11,"アンダージュニア"]
[10,"ソロストラット",12,"ジュニアⅠ"]
[10,"ソロストラット",13,"ジュニアⅡ"]
[10,"ソロストラット",14,"シニアⅠ"]
[10,"ソロストラット",15,"シニアⅡ"]
[11,"ダンストワール",11,"アンダージュニア"]
[11,"ダンストワール",12,"ジュニアⅠ"]
[11,"ダンストワール",13,"ジュニアⅡ"]
[11,"ダンストワール",14,"シニアⅠ"]
[11,"ダンストワール",15,"シニアⅡ"]